fUST/lending_fUST_20240111
["ID","MTS","AMOUNT","RATE_DAILY","PERIOD"]
[311128120,1704925842705,-150.360848,0.00030073,2]
[311128122,1704925842714,-152.788532,0.00030073,2]
[311128124,1704925842724,-150.360848,0.00030073,2]
[311128125,1704925842733,-152.788532,0.00030073,2]
[311128126,1704925842743,-164.471897,0.00030073,2]
[311128127,1704925842753,-197.35265213,0.0003013,2]
[311128128,1704925842763,-151.0,0.00030136,2]
[311128129,1704925842773,-152.969553,0.00030136,2]
[311128131,1704925842783,-152.969553,0.00030136,2]
[311128133,1704925842792,-1137.276663,0.00030136,2]
[311128135,1704925842802,-1137.276663,0.00030136,2]
[311128136,1704925842811,-500.0,0.00030136,2]
[311128138,1704925842820,-500.0,0.00030136,2]
[311128140,1704925842830,-500.0,0.00030136,2]
[311128141,1704925842839,-500.0,0.00030136,2]
[311128142,1704925842849,-500.0,0.00030136,2]
[311128143,1704925842859,-500.0,0.00030136,2]
[311128145,1704925842868,-500.0,0.00030136,2]
[311128146,1704925842878,-500.0,0.00030136,2]
[311128147,1704925842888,-500.0,0.00030136,2]
[311128148,1704925842897,-500.0,0.00030136,2]
[311128149,1704925842906,-500.0,0.00030136,2]
[311128151,1704925842916,-500.0,0.00030136,2]
[311128152,1704925842925,-571.23633064,0.00030136,2]
[311128153,1704925842937,-500.0,0.00030136,2]
[311128157,1704925842946,-504.76831012,0.00030136,2]
[311128160,1704925842955,-500.0,0.00030136,2]
[311128164,1704925842965,-500.0,0.00030136,2]
[311128167,1704925842975,-500.0,0.00030136,2]
[311128173,1704925842984,-500.0,0.00030136,2]
[311128177,1704925842993,-1001.38259395,0.00030136,2]
[311128179,1704925843002,-500.0,0.00030136,2]
[311128182,1704925843012,-500.0,0.00030136,2]
[311128185,1704925843021,-500.0,0.00030136,2]
[311128188,1704925843031,-500.0,0.00030136,2]
[311128191,1704925843040,-500.0,0.00030136,2]
[311128193,1704925843049,-500.0,0.00030136,2]
[311128195,1704925843058,-500.0,0.00030136,2]
[311128197,1704925843068,-500.0,0.00030136,2]
[311128199,1704925843077,-500.0,0.00030136,2]
[311128200,1704925843086,-500.0,0.00030136,2]
[311128202,1704925843096,-500.0,0.00030136,2]
[311128204,1704925843106,-500.0,0.00030136,2]
[311128206,1704925843115,-500.0,0.00030136,2]
[311128207,1704925843124,-500.0,0.00030136,2]
[311128208,1704925843133,-500.0,0.00030136,2]
[311128209,1704925843141,-177.8276672,0.00030136,2]
[311128210,1704925843150,-500.0,0.00030136,2]
[311128212,1704925843159,-500.0,0.00030136,2]
[311128213,1704925843168,-500.0,0.00030136,2]
[311128215,1704925843177,-500.0,0.00030136,2]
[311128217,1704925843187,-500.0,0.00030136,2]
[311128219,1704925843196,-500.0,0.00030136,2]
[311128221,1704925843206,-200.0,0.00030136,2]
[311128223,1704925843215,-500.0,0.00030136,2]
[311128224,1704925843224,-420.13288424,0.00030136,2]
[311128225,1704925843232,-500.0,0.00030136,2]
[311128226,1704925843242,-641.4105918,0.00030136,2]
[311128227,1704925843251,-154.29729751,0.00030136,2]
[311128228,1704925843260,-500.0,0.00030136,2]
[311128229,1704925843269,-500.0,0.00030136,2]
[311128230,1704925843277,-504.21942309,0.00030136,2]
[311128231,1704925843287,-282.4939913,0.00030136,2]
[311128232,1704925843296,-500.0,0.00030136,2]
[311128233,1704925843310,-502.5845982,0.00030136,2]
[311128234,1704925843318,-500.0,0.00030136,2]
[311128236,1704925843327,-631.82750431,0.00030136,2]
[311128238,1704925843335,-500.0,0.00030136,2]
[311128239,1704925843344,-500.0,0.00030136,2]
[311128241,1704925843355,-500.0,0.00030136,2]
[311128242,1704925843364,-500.0,0.00030136,2]
[311128243,1704925843373,-500.0,0.00030136,2]
[311128244,1704925843383,-202.74783621,0.00030136,2]
[311128245,1704925843392,-500.0,0.00030136,2]
[311128246,1704925843402,-383.88957127,0.00030136,2]
[311128247,1704925843411,-21.24577177,0.00030136,2]
[311128248,1704925843425,-978.75422823,0.00030136,2]
[311128249,1704925843435,-500.0,0.00030136,2]
[311128250,1704925843445,-500.0,0.00030136,2]
[311128251,1704925843454,-500.0,0.00030136,2]
[311128252,1704925843463,-501.94728319,0.00030136,2]
[311128253,1704925843473,-500.0,0.00030136,2]
[311128254,1704925843482,-518.84293731,0.00030136,2]
[311128255,1704925843492,-555.23740304,0.00030136,2]
[311128256,1704925843501,-500.0,0.00030136,2]
[311128257,1704925843510,-391.08808725,0.00030136,2]
[311128258,1704925843523,-108.91191275,0.00030136,2]
[311128259,1704925843531,-155.0,0.00030136,2]
[311128260,1704925843541,-600.0,0.00030136,2]
[311128261,1704925843550,-500.0,0.00030136,2]
[311128262,1704925843560,-500.0,0.00030136,2]
[311128263,1704925843570,-500.0,0.00030136,2]
[311128264,1704925843579,-500.0,0.00030136,2]
[311128265,1704925843588,-526.81,0.00030136,2]
[311128266,1704925843597,-500.0,0.00030136,2]
[311128267,1704925843606,-227.53869892,0.00030136,2]
[311128268,1704925843621,-272.46130108,0.00030136,2]
[311128269,1704925843630,-209.03596166,0.00030136,2]
[311128270,1704925843727,-901.68385165,0.00013405,2]
[311128271,1704925843737,-10416.9,0.00027397,3]
[311128272,1704925843746,-290.96403834,0.00030136,2]
[311128273,1704925843756,-500.0,0.00030136,2]
[311128274,1704925843765,-500.0,0.00030136,2]
[311128275,1704925843774,-504.89947469,0.00030136,2]
[311128276,1704925843784,-500.0,0.00030136,2]
[311128277,1704925843793,-500.0,0.00030136,2]
[311128278,1704925843802,-500.0,0.00030136,2]
[311128279,1704925843811,-500.0,0.00030136,2]
[311128280,1704925843820,-500.0,0.00030136,2]
[311128281,1704925843829,-500.0,0.00030136,2]
[311128282,1704925843838,-500.0,0.00030136,2]
[311128283,1704925843847,-500.0,0.00030136,2]
[311128284,1704925843856,-302.90524066,0.00030136,2]
[311128285,1704925843865,-509.12236943,0.00030136,2]
[311128286,1704925843874,-494.86882139,0.00030136,14]
[311128287,1704925843883,-500.0,0.00030136,2]
[311128288,1704925843893,-500.0,0.00030136,2]
[311128289,1704925843902,-500.0,0.00030136,2]
[311128290,1704925843912,-500.0,0.00030136,2]
[311128291,1704925843922,-503.15109969,0.00030136,2]
[311128292,1704925843931,-500.0,0.00030136,2]
[311128293,1704925843941,-500.0,0.00030136,2]
[311128294,1704925843950,-500.0,0.00030136,2]
[311128295,1704925843959,-500.0,0.00030136,2]
[311128296,1704925843968,-500.0,0.00030136,2]
[311128297,1704925843977,-541.71,0.00030136,2]
[311128298,1704925843986,-500.0,0.00030136,2]
[311128299,1704925843995,-150.0,0.00030136,2]
[311128300,1704925844004,-518.23,0.00030136,2]
[311128301,1704925844013,-500.0,0.00030136,2]
[311128302,1704925844022,-500.0,0.00030136,2]
[311128303,1704925844032,-500.0,0.00030136,2]
[311128304,1704925844041,-500.0,0.00030136,2]
[311128305,1704925844050,-500.0,0.00030136,2]
[311128306,1704925844059,-500.0,0.00030136,2]
[311128307,1704925844069,-783.64,0.00030136,2]
[311128308,1704925844078,-783.64,0.00030136,2]
[311128309,1704925844087,-783.64,0.00030136,2]
[311128310,1704925844096,-783.64,0.00030136,2]
[311128311,1704925844105,-783.64,0.00030136,2]
[311128312,1704925844114,-783.64,0.00030136,2]
[311128313,1704925844123,-783.64,0.00030136,2]
[311128314,1704925844133,-783.64,0.00030136,2]
[311128315,1704925844142,-783.64,0.00030136,2]
[311128316,1704925844151,-783.64,0.00030136,2]
[311128317,1704925844161,-783.64,0.00030136,2]
[311128318,1704925844170,-783.64,0.00030136,2]
[311128319,1704925844179,-783.64,0.00030136,2]
[311128320,1704925844188,-783.64,0.00030136,2]
[311128321,1704925844198,-783.64,0.00030136,2]
[311128322,1704925844207,-783.64,0.00030136,2]
[311128323,1704925844216,-783.64,0.00030136,2]
[311128324,1704925844227,-783.64,0.00030136,2]
[311128325,1704925844236,-500.0,0.00030136,2]
[311128326,1704925844246,-600.29651718,0.00030136,2]
[311128327,1704925844259,-183.34348282,0.00030136,2]
[311128328,1704925844268,-783.64,0.00030136,2]
[311128329,1704925844277,-783.64,0.00030136,2]
[311128330,1704925844286,-783.64,0.00030136,2]
[311128331,1704925844295,-783.64,0.00030136,2]
[311128332,1704925844305,-783.83317931,0.00030136,2]
[311128333,1704925844314,-500.0,0.00030136,2]
[311128334,1704925844322,-156.31599337,0.00030136,2]
[311128335,1704925844334,-343.68400663,0.00030136,2]
[311128336,1704925844343,-500.0,0.00030136,2]
[311128337,1704925844352,-500.0,0.00030136,2]
[311128338,1704925844362,-537.22173204,0.00030136,2]
[311128339,1704925844371,-500.0,0.00030136,2]
[311128340,1704925844380,-500.0,0.00030136,2]
[311128341,1704925844389,-1348.27,0.00030136,2]
[311128342,1704925844398,-513.26199714,0.00030136,2]
[311128343,1704925844407,-500.0,0.00030136,2]
[311128344,1704925844416,-500.0,0.00030136,2]
[311128345,1704925844425,-500.0,0.00030136,2]
[311128346,1704925844435,-254.96127151,0.00030136,2]
[311128347,1704925844444,-500.0,0.00030136,2]
[311128348,1704925844453,-503.86569273,0.00030136,2]
[311128349,1704925844462,-500.0,0.00030136,2]
[311128350,1704925844472,-500.0,0.00030136,2]
[311128351,1704925844482,-500.0,0.00030136,2]
[311128352,1704925844491,-500.0,0.00030136,2]
[311128353,1704925844500,-500.0,0.00030136,2]
[311128354,1704925844509,-500.0,0.00030136,2]
[311128355,1704925844518,-500.0,0.00030136,2]
[311128356,1704925844527,-500.0,0.00030136,2]
[311128357,1704925844536,-500.0,0.00030136,2]
[311128358,1704925844545,-503.41865706,0.00030136,2]
[311128359,1704925844555,-500.0,0.00030136,2]
[311128360,1704925844564,-1000.0,0.00030136,5]
[311128361,1704925844573,-215.0521032,0.00030136,2]
[311128362,1704925844582,-500.0,0.00030136,2]
[311128363,1704925844593,-500.0,0.00030136,2]
[311128364,1704925844603,-500.0,0.00030136,2]
[311128365,1704925844613,-500.0,0.00030136,2]
[311128366,1704925844622,-500.0,0.00030136,2]
[311128367,1704925844631,-500.0,0.00030136,2]
[311128368,1704925844641,-546.55649512,0.00030136,2]
[311128369,1704925844650,-500.0,0.00030136,2]
[311128370,1704925844659,-500.0,0.00030136,2]
[311128371,1704925844669,-500.0,0.00030136,2]
[311128372,1704925844678,-500.0,0.00030136,2]
[311128373,1704925844689,-500.0,0.00030136,2]
[311128374,1704925844698,-500.0,0.00030136,2]
[311128375,1704925844707,-182.39296661,0.00030136,2]
[311128376,1704925844717,-500.0,0.00030136,2]
[311128377,1704925844726,-500.0,0.00030136,2]
[311128378,1704925844734,-500.0,0.00030136,2]
[311128379,1704925844743,-500.0,0.00030136,2]
[311128380,1704925844753,-500.0,0.00030136,2]
[311128381,1704925844762,-500.0,0.00030136,2]
[311128382,1704925844770,-500.0,0.00030136,2]
[311128383,1704925844780,-503.57074347,0.00030136,2]
[311128384,1704925844789,-500.0,0.00030136,2]
[311128385,1704925844798,-500.0,0.00030136,2]
[311128386,1704925844807,-500.0,0.00030136,2]
[311128387,1704925844816,-346.31997806,0.00030136,2]
[311128388,1704925844824,-500.0,0.00030136,2]
[311128389,1704925844833,-500.0,0.00030136,2]
[311128390,1704925844843,-500.0,0.00030136,2]
[311128391,1704925844853,-500.0,0.00030136,2]
[311128392,1704925844862,-500.0,0.00030136,2]
[311128393,1704925844874,-500.0,0.00030136,2]
[311128394,1704925844883,-500.0,0.00030136,2]
[311128395,1704925844892,-500.0,0.00030136,2]
[311128396,1704925844901,-500.0,0.00030136,2]
[311128397,1704925844911,-500.0,0.00030136,2]
[311128398,1704925844921,-500.0,0.00030136,2]
[311128399,1704925845019,-500.0,0.00030136,2]
[311128400,1704925845028,-500.0,0.00030136,2]
[311128401,1704925845037,-500.0,0.00030136,2]
[311128402,1704925845047,-500.0,0.00030136,2]
[311128403,1704925845056,-501.76318539,0.00030136,2]
[311128404,1704925845066,-500.0,0.00030136,2]
[311128405,1704925845075,-500.0,0.00030136,2]
[311128406,1704925845084,-500.0,0.00030136,2]
[311128407,1704925845093,-500.0,0.00030136,2]
[311128408,1704925845102,-663.56,0.00030136,2]
[311128409,1704925845111,-500.0,0.00030136,2]
[311128410,1704925845121,-500.0,0.00030136,2]
[311128411,1704925845130,-500.0,0.00030136,2]
[311128412,1704925845139,-500.0,0.00030136,2]
[311128413,1704925845149,-500.0,0.00030136,2]
[311128414,1704925845158,-500.0,0.00030136,2]
[311128415,1704925845167,-500.0,0.00030136,2]
[311128416,1704925845177,-500.0,0.00030136,2]
[311128417,1704925845188,-500.0,0.00030136,2]
[311128418,1704925845197,-500.0,0.00030136,2]
[311128419,1704925845206,-524.80636246,0.00030136,2]
[311128420,1704925845216,-220.0,0.00030136,2]
[311128421,1704925845224,-500.0,0.00030136,2]
[311128422,1704925845233,-500.0,0.00030136,2]
[311128424,1704925845243,-500.0,0.00030136,2]
[311128426,1704925845252,-500.0,0.00030136,2]
[311128428,1704925845261,-500.0,0.00030136,2]
[311128430,1704925845270,-9058.52,0.00030136,2]
[311128432,1704925845279,-501.81411556,0.00030136,2]
[311128434,1704925845288,-500.0,0.00030136,2]
[311128436,1704925845297,-500.0,0.00030136,2]
[311128438,1704925845309,-500.0,0.00030136,2]
[311128439,1704925845318,-500.0,0.00030136,2]
[311128442,1704925845328,-500.0,0.00030136,2]
[311128444,1704925845337,-508.70413339,0.00030136,2]
[311128445,1704925845347,-501.69216036,0.00030136,2]
[311128447,1704925845356,-372.14980539,0.00030136,2]
[311128449,1704925845365,-500.0,0.00030136,2]
[311128451,1704925845375,-500.0,0.00030136,2]
[311128453,1704925845384,-500.0,0.00030136,2]
[311128456,1704925845394,-500.0,0.00030136,2]
[311128457,1704925845403,-1569.68,0.00030136,2]
[311128460,1704925845413,-500.0,0.00030136,2]
[311128461,1704925845422,-251.80710682,0.00030136,2]
[311128464,1704925845431,-500.0,0.00030136,2]
[311128465,1704925845442,-500.0,0.00030136,2]
[311128467,1704925845452,-500.0,0.00030136,2]
[311128469,1704925845461,-552.6257611,0.00030136,2]
[311128471,1704925845470,-500.0,0.00030136,2]
[311128474,1704925845479,-500.0,0.00030136,2]
[311128476,1704925845490,-500.0,0.00030136,2]
[311128478,1704925845499,-500.0,0.00030136,2]
[311128480,1704925845508,-1802.45,0.00030136,2]
[311128482,1704925845517,-501.12318678,0.00030136,2]
[311128484,1704925845526,-500.0,0.00030136,2]
[311128486,1704925845535,-500.0,0.00030136,2]
[311128488,1704925845545,-500.0,0.00030136,2]
[311128490,1704925845553,-500.0,0.00030136,2]
[311128493,1704925845562,-494.45260509,0.00030136,2]
[311128497,1704925845571,-349.63272372,0.00030136,2]
[311128499,1704925845580,-500.0,0.00030136,2]
[311128501,1704925845590,-816.04,0.00030136,2]
[311128504,1704925845600,-529.33798339,0.00030136,2]
[311128508,1704925845609,-500.0,0.00030136,2]
[311128511,1704925845618,-249.40477542,0.00030136,2]
[311128514,1704925845629,-500.0,0.00030136,2]
[311128518,1704925845638,-502.85008081,0.00030136,2]
[311128520,1704925845648,-500.0,0.00030136,2]
[311128523,1704925845657,-500.0,0.00030136,2]
[311128526,1704925845667,-500.0,0.00030136,2]
[311128528,1704925845677,-500.0,0.00030136,2]
[311128531,1704925845689,-500.0,0.00030136,5]
[311128535,1704925845699,-500.0,0.00030136,2]
[311128537,1704925845708,-500.0,0.00030136,2]
[311128540,1704925845718,-500.0,0.00030136,2]
[311128543,1704925845727,-500.6363967,0.00030136,2]
[311128546,1704925845737,-500.0,0.00030136,2]
[311128549,1704925845746,-500.0,0.00030136,2]
[311128551,1704925845757,-500.0,0.00030136,2]
[311128553,1704925845766,-500.0,0.00030136,2]
[311128554,1704925845775,-500.0,0.00030136,2]
[311128556,1704925845784,-500.0,0.00030136,2]
[311128558,1704925845794,-500.0,0.00030136,2]
[311128561,1704925845803,-522.09370799,0.00030136,2]
[311128563,1704925845812,-500.0,0.00030136,2]
[311128564,1704925845822,-2591.73,0.00030136,2]
[311128566,1704925845831,-502.37533265,0.00030136,2]
[311128568,1704925845840,-302.133268,0.00030136,2]
[311128570,1704925845850,-500.0,0.00030136,2]
[311128574,1704925845859,-500.0,0.00030136,2]
[311128577,1704925845868,-500.0,0.00030136,2]
[311128579,1704925845877,-500.0,0.00030136,2]
[311128581,1704925845887,-2381.63,0.00030136,2]
[311128583,1704925845896,-256.59394632,0.00030136,2]
[311128603,1704925846002,-243.40605368,0.00030136,2]
[311128607,1704925846012,-819.69,0.00030136,2]
[311128610,1704925846021,-500.0,0.00030136,2]
[311128611,1704925846030,-706.07,0.00030136,2]
[311128615,1704925846040,-5696.28,0.00030136,2]
[311128618,1704925846050,-571.3599163,0.00030136,2]
[311128621,1704925846059,-500.0,0.00030136,2]
[311128625,1704925846069,-500.0,0.00030136,2]
[311128628,1704925846078,-500.0,0.00030136,2]
[311128630,1704925846088,-502.60974127,0.00030136,2]
[311128634,1704925846098,-1641.19,0.00030136,2]
[311128638,1704925846108,-500.0,0.00030136,2]
[311128642,1704925846117,-500.0,0.00030136,2]
[311128647,1704925846127,-500.0,0.00030136,2]
[311128651,1704925846137,-504.15922534,0.00030136,2]
[311128654,1704925846146,-500.0,0.00030136,2]
[311128662,1704925846167,-500.0,0.00030136,2]
[311128667,1704925846179,-500.0,0.00030136,2]
[311128671,1704925846190,-500.0,0.00030136,2]
[311128674,1704925846202,-500.0,0.00030136,2]
[311128678,1704925846213,-500.0,0.00030136,2]
[311128681,1704925846224,-500.0,0.00030136,2]
[311128684,1704925846235,-500.0,0.00030136,2]
[311128687,1704925846245,-1396.87,0.00030136,2]
[311128690,1704925846255,-500.0,0.00030136,2]
[311128693,1704925846265,-500.0,0.00030136,2]
[311128696,1704925846275,-500.0,0.00030136,2]
[311128699,1704925846284,-500.0,0.00030136,2]
[311128703,1704925846294,-500.0,0.00030136,2]
[311128706,1704925846303,-500.0,0.00030136,2]
[311128709,1704925846314,-454.51255567,0.00030136,2]
[311128711,1704925846323,-527.53763568,0.00030136,2]
[311128713,1704925846332,-500.0,0.00030136,2]
[311128715,1704925846341,-915.4,0.00030136,2]
[311128717,1704925846351,-500.0,0.00030136,2]
[311128720,1704925846360,-500.0,0.00030136,2]
[311128722,1704925846369,-243.77924832,0.00030136,2]
[311128725,1704925846379,-500.0,0.00030136,2]
[311128728,1704925846389,-500.0,0.00030136,2]
[311128731,1704925846398,-500.0,0.00030136,2]
[311128734,1704925846408,-500.0,0.00030136,2]
[311128737,1704925846417,-500.0,0.00030136,2]
[311128740,1704925846426,-500.0,0.00030136,2]
[311128743,1704925846436,-500.0,0.00030136,2]
[311128746,1704925846447,-500.66775379,0.00030136,2]
[311128749,1704925846456,-500.0,0.00030136,2]
[311128752,1704925846466,-501.29303316,0.00030136,2]
[311128755,1704925846475,-500.0,0.00030136,2]
[311128758,1704925846489,-501.07799882,0.00030136,2]
[311128761,1704925846498,-500.0,0.00030136,2]
[311128764,1704925846508,-500.0,0.00030136,2]
[311128766,1704925846517,-500.0,0.00030136,2]
[311128768,1704925846527,-500.0,0.00030136,2]
[311128770,1704925846536,-500.0,0.00030136,2]
[311128772,1704925846549,-616.13,0.00030136,2]
[311128774,1704925846559,-500.0,0.00030136,2]
[311128776,1704925846569,-500.0,0.00030136,2]
[311128778,1704925846578,-500.0,0.00030136,2]
[311128780,1704925846587,-500.0,0.00030136,2]
[311128782,1704925846597,-562.16150847,0.00030136,2]
[311128785,1704925846607,-500.0,0.00030136,2]
[311128787,1704925846617,-500.0,0.00030136,2]
[311128789,1704925846628,-500.0,0.00030136,2]
[311128791,1704925846638,-500.0,0.00030136,2]
[311128793,1704925846647,-500.0,0.00030136,2]
[311128795,1704925846657,-500.0,0.00030136,2]
[311128797,1704925846666,-552.44,0.00030136,2]
[311128799,1704925846675,-503.43008667,0.00030136,2]
[311128801,1704925846686,-500.0,0.00030136,2]
[311128803,1704925846697,-500.0,0.00030136,2]
[311128805,1704925846708,-500.0,0.00030136,2]
[311128807,1704925846718,-502.36378172,0.00030136,2]
[311128809,1704925846728,-500.0,0.00030136,2]
[311128811,1704925846739,-500.0,0.00030136,2]
[311128813,1704925846749,-500.0,0.00030136,2]
[311128815,1704925846759,-500.0,0.00030136,2]
[311128817,1704925846768,-1000.0,0.00030136,2]
[311128819,1704925846777,-501.60366891,0.00030136,2]
[311128821,1704925846787,-209.36098013,0.00030136,2]
[311128823,1704925846796,-500.0,0.00030136,2]
[311128825,1704925846806,-1012.73,0.00030136,2]
[311128827,1704925846816,-500.0,0.00030136,2]
[311128829,1704925846826,-500.0,0.00030136,2]
[311128831,1704925846835,-500.0,0.00030136,2]
[311128833,1704925846844,-500.0,0.00030136,2]
[311128835,1704925846853,-500.0,0.00030136,2]
[311128837,1704925846862,-500.0,0.00030136,2]
[311128839,1704925846871,-500.0,0.00030136,2]
[311128841,1704925846880,-500.0,0.00030136,2]
[311128843,1704925846890,-500.0,0.00030136,2]
[311128845,1704925846900,-503.17133488,0.00030136,2]
[311128847,1704925846910,-500.0,0.00030136,2]
[311128849,1704925846919,-500.0,0.00030136,2]
[311128851,1704925846928,-180.21967225,0.00030136,2]
[311128853,1704925846938,-500.0,0.00030136,2]
[311128855,1704925846947,-5000.0,0.00030137,2]
[311128857,1704925846957,-5000.0,0.00030137,2]
[311128859,1704925846967,-5000.0,0.00030137,2]
[311128861,1704925846976,-5000.0,0.00030137,2]
[311128863,1704925846986,-99.20108394,0.00030137,2]
[311128929,1704925847643,-154.93802479,0.00013405,2]
[311128930,1704925847652,-344.58931583,0.00013405,2]
[311128931,1704925847665,-3133.53963278,0.00013405,2]
[311128932,1704925847673,-285.7548216,0.00013405,2]
[311128933,1704925847683,-610.42701804,0.00023288,2]
[311128934,1704925847694,-500.0,0.00023288,2]
[311128935,1704925847703,-500.0,0.00023288,2]
[311128936,1704925847712,-500.0,0.00023288,2]
[311128937,1704925847721,-500.0,0.00023288,2]
[311128938,1704925847730,-500.0,0.00023288,2]
[311128939,1704925847739,-500.0,0.00023288,2]
[311128940,1704925847747,-494.02202573,0.00023288,2]
[311128942,1704925847756,-495.62487963,0.00023288,2]
[311128944,1704925847765,-500.0,0.00023288,2]
[311128945,1704925847774,-500.0,0.00023288,2]
[311128948,1704925847783,-485.18610106,0.00023288,2]
[311128949,1704925847792,-500.0,0.00023288,2]
[311128951,1704925847801,-385.83025232,0.00023288,2]
[311128953,1704925847810,-321.49955049,0.00023288,2]
[311128956,1704925847822,-178.50044951,0.00023288,2]
[311128958,1704925847831,-500.0,0.00023288,2]
[311128960,1704925847841,-500.0,0.00023288,2]
[311128962,1704925847853,-500.0,0.00023288,2]
[311128964,1704925847867,-3715.84627938,0.00030137,2]
[311128966,1704925847877,-403.80726863,0.000302,3]
[311128968,1704925847885,-595.62130789,0.00030408,4]
[311128970,1704925847896,-500.0,0.00030409,4]
[311128972,1704925847905,-500.0,0.00030409,4]
[311128974,1704925847914,-500.0,0.00030409,4]
[311128975,1704925847924,-380.20468816,0.00030409,4]
[311128977,1704925847936,-147.15412404,0.00030409,4]
[311128979,1704925847947,-197.75780698,0.00030409,4]
[311128981,1704925847956,-500.0,0.00030409,4]
[311128982,1704925847966,-496.87883514,0.00030409,4]
[311128983,1704925847975,-500.0,0.00030409,4]
[311128984,1704925847984,-423.91635654,0.00030409,4]
[311128986,1704925847993,-500.0,0.00030409,4]
[311128988,1704925848003,-500.0,0.00030409,4]
[311128989,1704925848012,-646.65082628,0.00030409,4]
[311128991,1704925848022,-154.9690062,0.0003041,2]
[311128993,1704925848037,-500.0,0.0003041,2]
[311128995,1704925848048,-500.0,0.0003041,2]
[311128997,1704925848057,-500.0,0.0003041,2]
[311128999,1704925848067,-500.0,0.0003041,2]
[311129000,1704925848076,-500.0,0.0003041,2]
[311129002,1704925848085,-188.56233448,0.0003041,2]
[311129003,1704925848095,-504.62005244,0.0003041,2]
[311129004,1704925848105,-500.0,0.0003041,2]
[311129005,1704925848114,-500.0,0.0003041,2]
[311129006,1704925848123,-500.0,0.0003041,2]
[311129007,1704925848133,-500.0,0.0003041,2]
[311129008,1704925848142,-500.0,0.0003041,2]
[311129009,1704925848151,-593.16940502,0.0003041,2]
[311129010,1704925848160,-500.0,0.0003041,2]
[311129011,1704925848170,-500.0,0.0003041,2]
[311129012,1704925848180,-500.0,0.0003041,2]
[311129013,1704925848190,-500.0,0.0003041,2]
[311129014,1704925848199,-500.0,0.0003041,2]
[311129015,1704925848208,-500.0,0.0003041,2]
[311129016,1704925848218,-500.0,0.0003041,2]
[311129017,1704925848227,-500.0,0.0003041,2]
[311129018,1704925848236,-500.0,0.0003041,2]
[311129019,1704925848246,-500.0,0.0003041,2]
[311129020,1704925848255,-200.0,0.0003041,2]
[311129021,1704925848264,-500.0,0.0003041,2]
[311129022,1704925848273,-417.49108114,0.0003041,2]
[311129023,1704925848283,-500.0,0.0003041,2]
[311129024,1704925848293,-500.0,0.0003041,2]
[311129025,1704925848302,-500.0,0.0003041,2]
[311129026,1704925848311,-500.0,0.0003041,2]
[311129027,1704925848322,-500.0,0.0003041,2]
[311129028,1704925848331,-500.0,0.0003041,2]
[311129029,1704925848341,-500.0,0.0003041,2]
[311129030,1704925848350,-500.0,0.0003041,2]
[311129031,1704925848359,-497.22417374,0.0003041,2]
[311129032,1704925848368,-500.0,0.0003041,2]
[311129033,1704925848378,-500.0,0.0003041,2]
[311129034,1704925848387,-500.0,0.0003041,2]
[311129035,1704925848398,-165.36565225,0.0003041,2]